Cogmind - Beta 12 @@@ ROGUE MODE // 2023.05.26 @ 23:43:48 Player: snowphil Result: Destroyed by D-53 Grenadier with Mini Grenade Launcher Performance ------------- Evolutions (0) 0 Regions Visited (4) 800 Robots Destroyed (16) 80 Value Destroyed (417) 417 Prototype IDs (5) 100 Alien Tech Used (0) 0 Bonus (269) 269 TOTAL SCORE: 1666 Bonus ------- Aligned with FarCom 300 Friendly Fire -31 Cogmind --------- Core Integrity 0/250 Matter 196/300 Energy 97/100 System Corruption 0% Temperature Cool (25) Movement Walking (90) Location -9/Mines Parts ------- > --- POWER (1) -------- (None) > --- PROPULSION (2) --- Potential Leg Potential Leg > --- UTILITY (2) ------ Medium Storage Unit Targeting Computer > --- WEAPON (2) ------- Beam Cannon Heavy Assault Rifle > --- INVENTORY (10) --- Aluminum Leg Aluminum Leg Improved Heat Sink Large Storage Unit Sensor Array Seismic Detector Hacking Suite Grenade Launcher Hammer Peak State ------------ > --- POWER ------------ Light Ion Engine > --- PROPULSION ------- Potential Leg Potential Leg > --- UTILITY ---------- Medium Storage Unit Targeting Computer > --- WEAPON ----------- Beam Cannon Heavy Assault Rifle > --- INVENTORY -------- Light Ion Engine Aluminum Leg Aluminum Leg Aluminum Leg Improved Heat Sink Large Storage Unit Sensor Array Hacking Suite Grenade Launcher Hammer [Rating: 27] Favorites ----------- Power Light Ion Engine Engine Light Ion Engine Propulsion Aluminum Leg Leg Aluminum Leg Utility Targeting Computer Device Skeleton Box Storage Medium Storage Unit Processor Targeting Computer Weapon Beam Cannon Energy Gun Medium Laser Energy Cannon Beam Cannon Ballistic Gun Shotgun Launcher Grenade Launcher Special Weapon Field Lobotomy Kit Build | -11 -10 -10 -10 -9 ------- Run | Jun Mat Min Exi Min Slots Evolved . | . . . . . Power . | . . . . . Propulsion . | . . . . . Utility . | . . . . . Weapon . | . . . . . Parts Attached 33 | 6 13 2 10 2 Power 2 | 1 . . . 1 Engine 2 | 1 . . . 1 Core . | . . . . . Reactor . | . . . . . Propulsion 12 | 2 3 1 6 . Treads . | . . . . . Leg 12 | 2 3 1 6 . Wheel . | . . . . . Hover . | . . . . . Flight . | . . . . . Utility 5 | 1 2 . 2 . Device 1 | . . . 1 . Storage 3 | 1 1 . 1 . Processor 1 | . 1 . . . Hackware . | . . . . . Protection . | . . . . . Artifact . | . . . . . Weapon 14 | 2 8 1 2 1 Energy Gun 3 | 2 1 . . . Energy Cannon 3 | . 2 . . 1 Ballistic Gun 4 | . 3 1 . . Ballistic Cannon . | . . . . . Launcher 3 | . 2 . 1 . Special Weapon 1 | . . . 1 . Impact Weapon . | . . . . . Slashing Weapon . | . . . . . Piercing Weapon . | . . . . . Special Melee Weapon . | . . . . . Unidentified Prototypes 3 | . . . 3 . Parts Lost 2 | . . . . 2 Power 2 | . . . . 2 Propulsion . | . . . . . Utility . | . . . . . Weapon . | . . . . . Highest Loss Streak 1 | . . . . 1 To Critical Strikes . | . . . . . Average Slot Usage (%) 98 | . 97 100 98 100 Engine 14 | . 14 14 14 14 Leg 27 | . 27 28 27 28 Storage 13 | . 14 14 13 14 Processor 13 | . 12 14 14 14 Energy Cannon 10 | . 10 14 9 . Ballistic Gun 13 | . 12 14 14 14 Launcher 3 | . 2 . 4 13 Naked Turns . | . . . . . Heaviest Build 19 | 11 19 19 19 19 Greatest Support 60 | 20 20 20 60 60 Greatest Overweight (x) 1 | . . . 1 . Average Overweight (x) . | . . . . . Largest Inventory Capacity 10 | 8 10 10 10 10 Average Capacity 9 | 6 8 10 9 10 Most Carried 10 | 5 10 10 10 9 Average Carried 8 | 2 8 9 8 8 Final Capacity 10 | 8 10 10 10 10 Final Carried 10 | 2 10 9 9 9 Class Distribution -------------------- 100% | Mutant Dominant Class ---------------- Mutant | -10/Materials Mutant | -10/Mines Mutant | -10/Exiles Mutant | -9/Mines Resources | -11 -10 -10 -10 -9 ----------- Run | Jun Mat Min Exi Min Matter Collected 793 | 207 429 62 . 95 Remotely . | . . . . . Salvage Created 506 | . 309 132 . 65 Parts 28 | . 20 6 . 2 Haulers Intercepted . | . . . . . Recyclers Shooed . | . . . . . Parts Field Recycled . | . . . . . Retrieved Matter . | . . . . . Parts Self-Destructed . | . . . . . Prevented . | . . . . . Kills | -11 -10 -10 -10 -9 ------- Run | Jun Mat Min Exi Min Combat Hostiles Destroyed 24 | . 7 3 . 14 Guns 7 | . 3 3 . 1 Cannons 1 | . 1 . . . AOE 16 | . 3 . . 13 Classes Destroyed 8 | . 5 1 . 2 Tunneler 2 | . . . . 2 Recycler 1 | . 1 . . . Operator 1 | . 1 . . . Watcher 2 | . 2 . . . Swarmer 3 | . 3 . . . Grunt 5 | . 4 1 . . Sentry 2 | . . 2 . . Assembled 14 | . . . . 14 Best Kill Streak 16 | . 4 1 . 16 Combat Bots Only 14 | . 3 1 . 14 Max Kills in Single Turn 7 | . 3 1 . 7 Gunslinging . | . . . . . Exploded 5 | . 2 . . 5 Melee . | . . . . . Uniques/NPCs Destroyed . | . . . . . Combat | -11 -10 -10 -10 -9 -------- Run | Jun Mat Min Exi Min Damage Taken 906 | . 196 300 . 410 Core 256 | . 62 61 . 133 Absorbed by Shields . | . . . . . Core Remaining (%) 100 | 100 . . . . Volleys Fired 52 | . 29 13 . 10 Largest 2 | . 2 2 . 2 Hottest 83 | . 83 83 . 83 Shots Fired 91 | . 53 26 . 12 Gun 47 | . 31 13 . 3 Cannon 35 | . 20 13 . 2 Launcher 9 | . 2 . . 7 Special . | . . . . . Kinetic 47 | . 31 13 . 3 Thermal 35 | . 20 13 . 2 Explosive 9 | . 2 . . 7 Electromagnetic . | . . . . . Robot Hit Streak 16 | . 9 16 . 7 Robot Miss Streak 7 | . 7 2 . 1 Penetration Max . | . . . . . Secondary Targets . | . . . . . Shots Hit Robots 62 | . 31 22 . 9 Core Hits 57 | . 18 7 . 32 Critical Kills 1 | . 1 . . . Critical Parts Destroyed . | . . . . . Critical Strikes 1 | . 1 . . . Destroy 1 | . 1 . . . Melee Attacks . | . . . . . Impact . | . . . . . Slashing . | . . . . . Piercing . | . . . . . Sneak Attacks . | . . . . . Combat Hostiles . | . . . . . Follow-up Attacks . | . . . . . Damage Inflicted 2129 | . 711 353 . 1065 Guns 569 | . 343 178 . 48 Cannons 366 | . 155 175 . 36 Explosions 1194 | . 213 . . 981 Melee . | . . . . . Ramming . | . . . . . Kinetic 569 | . 343 178 . 48 Thermal 366 | . 155 175 . 36 Explosive 1194 | . 213 . . 981 Electromagnetic . | . . . . . Impact . | . . . . . Slashing . | . . . . . Piercing . | . . . . . Highest Corruption . | . . . . . Average Corruption . | . . . . . Corruption Purged . | . . . . . Corruption Blocked . | . . . . . Overload Shots . | . . . . . Overflow Damage 39 | . 21 . . 18 Projectiles . | . . . . . Explosions 39 | . 21 . . 18 Melee . | . . . . . Knockbacks . | . . . . . Impact . | . . . . . Kinetic . | . . . . . Secondary . | . . . . . Self-Inflicted Damage 78 | . . . . 78 Shots 4 | . . . . 4 Rammed . | . . . . . Targets Rammed . | . . . . . Kicked . | . . . . . Crushed . | . . . . . Highest Temperature 210 | . 150 210 . 30 Average Temperature 53 | . 41 82 . 14 Received Heat Transfer 269 | . 81 108 . 80 Siege Activations . | . . . . . Robots Corrupted . | . . . . . Combat Hostiles . | . . . . . Parts Fried . | . . . . . Impact Corruptions . | . . . . . Robots Melted . | . . . . . Combat Hostiles . | . . . . . Parts Melted . | . . . . . Heat Transferred 777 | . 333 370 . 74 Parts Sabotaged . | . . . . . Parts Stolen . | . . . . . Parts Stripped . | . . . . . Power Chain Reactions . | . . . . . Missiles Intercepted . | . . . . . Alert | -11 -10 -10 -10 -9 ------- Run | Jun Mat Min Exi Min Peak Influence 242 | . 242 75 . 86 Initial 15 | . . 15 . . Average 70 | . 96 46 . 40 Maximum Alert Level 1 | . 1 . . . Low Security (%) 96 | 100 93 100 . 100 Level 1 3 | . 6 . . . Level 2 . | . . . . . Level 3 . | . . . . . Level 4 . | . . . . . Level 5 . | . . . . . High Security . | . . . . . Max Security . | . . . . . Squads Dispatched . | . . . . . Investigation . | . . . . . Extermination . | . . . . . Reinforcement . | . . . . . Assault . | . . . . . Garrison . | . . . . . Intercept . | . . . . . Searches Triggered . | . . . . . Construction Impeded . | . . . . . Haulers Reinforced . | . . . . . Active Scanning Responses . | . . . . . Cargo Convoy Interrupts . | . . . . . Stealth | -11 -10 -10 -10 -9 --------- Run | Jun Mat Min Exi Min Distress Signals 2 | . 2 . . . Communications Jammed . | . . . . . Distress Signals . | . . . . . Times Spotted 45 | . 18 4 . 23 Peak Tracking Total 20 | . 4 2 . 20 Tactical Retreats 4 | . 1 . . 3 Traps | -11 -10 -10 -10 -9 ------- Run | Jun Mat Min Exi Min Traps Triggered 2 | . 2 . . . Indirectly . | . . . . . Trap Hack Attempts . | . . . . . Triggered . | . . . . . Disarmed . | . . . . . Reprogrammed . | . . . . . Reused . | . . . . . Traps Extracted . | . . . . . Installed . | . . . . . Triggered . | . . . . . Exploded 1 | . . . 1 . Machines | -11 -10 -10 -10 -9 ---------- Run | Jun Mat Min Exi Min Machines Disabled 2 | . 2 . . . Max in Single Turn 1 | . 1 . . . Machines Repaired . | . . . . . Machines Sabotaged . | . . . . . Overloaded Fab Kills . | . . . . . Hacking | -11 -10 -10 -10 -9 --------- Run | Jun Mat Min Exi Min Machines Accessed 8 | . 7 . . 1 Terminals 8 | . 7 . . 1 Fabricators . | . . . . . Repair Stations . | . . . . . Recycling Units . | . . . . . Scanalyzers . | . . . . . Garrison Access . | . . . . . Total Hacks 20 | . 18 . . 2 Successful 6 | . 6 . . . Failed 14 | . 12 . . 2 Catastrophic 1 | . 1 . . . Database Lockouts . | . . . . . Manual 9 | . 8 . 1 . Terminals 20 | . 18 . . 2 Fabricators . | . . . . . Repair Stations . | . . . . . Recycling Units . | . . . . . Scanalyzers . | . . . . . Garrison Access . | . . . . . Terminal Hacks 4 | . 4 . . . Prototype ID Bank 1 | . 1 . . . Branch Access Points 1 | . 1 . . . Locate Traps 2 | . 2 . . . Fabricator Hacks . | . . . . . Repair Station Hacks . | . . . . . Recycling Unit Hacks . | . . . . . Scanalyzer . | . . . . . Garrison Access Hacks . | . . . . . Unauthorized Hacks 2 | . 2 . . . Terminals 2 | . 2 . . . Assimilate 2 | . 2 . . . Fabricators . | . . . . . Repair Stations . | . . . . . Recycling Units . | . . . . . Scanalyzers . | . . . . . Garrison Access . | . . . . . Data Cores Recovered 1 | . 1 . . . Used . | . . . . . Hacking Detections 7 | . 6 . . 1 Full Trace Events . | . . . . . Feedback Events . | . . . . . Feedback Blocked . | . . . . . Robot Schematics Acquired . | . . . . . Robots Built . | . . . . . Authchips . | . . . . . Time . | . . . . . Total Robot Build Rating . | . . . . . Part Schematics Acquired . | . . . . . Parts Built . | . . . . . Authchips . | . . . . . Time . | . . . . . Total Part Build Rating . | . . . . . Parts Repaired . | . . . . . Time . | . . . . . Parts Recycled . | . . . . . Recycled Matter . | . . . . . Retrieved Matter . | . . . . . Retrieved Components . | . . . . . Parts Scanalyzed . | . . . . . Part Schematics Acquired . | . . . . . Parts Damaged . | . . . . . Bothacking | -11 -10 -10 -10 -9 ------------ Run | Jun Mat Min Exi Min Used RIF Installer . | . . . . . Robots Hacked . | . . . . . Non-combat . | . . . . . Combat . | . . . . . Robot Hacks Applied . | . . . . . Relay Couplers Released . | . . . . . Fabnet Peak Effective % . | . . . . . Robots Rewired . | . . . . . Allies Hacked . | . . . . . Hacks Repelled . | . . . . . Allies | -11 -10 -10 -10 -9 -------- Run | Jun Mat Min Exi Min Total Allies . | . . . . . Largest Group . | . . . . . Highest-Rated Group . | . . . . . Highest-Rated Ally . | . . . . . Total Orders . | . . . . . Ally Attacks . | . . . . . Total Damage . | . . . . . Kills . | . . . . . Allies Corrupted . | . . . . . Allies Melted . | . . . . . Intel | -11 -10 -10 -10 -9 ------- Run | Jun Mat Min Exi Min Robot Analysis Total . | . . . . . Derelict Logs Recovered 2 | . . 2 . . Drone Launches . | . . . . . Drone Recoveries . | . . . . . Exploration | -11 -10 -10 -10 -9 ------------- Run | Jun Mat Min Exi Min Turns Passed 3126 | 65 1188 823 826 224 Spaces Moved 2101 | 49 705 611 548 188 Core 10 | 10 . . . . Treads . | . . . . . Legs 2091 | 39 705 611 548 188 Wheels . | . . . . . Hover . | . . . . . Flight . | . . . . . Fastest Speed 50 | 50 120 120 90 90 Average Speed 115 | 105 120 120 114 90 Slowest Speed 190 | 120 120 120 190 90 Overloaded Moves . | . . . . . Propulsion Burnouts . | . . . . . Robots Hopped . | . . . . . Cave-ins Triggered . | . . . . . Exploration Rate (%) 64 | 5 96 94 89 36 Regions Visited 4 Branch Regions 3 Pre-discovered Areas 1 | . . 1 . . Known Exits Taken 1 | . 1 . . . Unknown Exits Taken 3 | 1 . 1 1 . Scrap Searched 2 | . . 2 . . Spaces Dug . | . . . . . Terrain Destroyed 60 | . 5 . . 55 Melee . | . . . . . Projectile . | . . . . . AOE 60 | . 5 . . 55 Terrain Rammed . | . . . . . Walls Destroyed . | . . . . . Machines Disabled . | . . . . . Actions | -11 -10 -10 -10 -9 --------- Run | Jun Mat Min Exi Min Total 2715 | 62 999 676 747 231 Wait 463 | . 211 49 173 30 Move 2097 | 48 704 610 547 188 Hop . | . . . . . Pick Up 43 | 8 25 . 9 1 Fast Attach 2 | . 1 . 1 . Attach 15 | 6 4 1 3 1 Detach 1 | . 1 . . . Swap 16 | . 8 1 6 1 Drop 26 | . 16 2 8 . Fire 52 | . 29 13 . 10 Melee . | . . . . . Ram . | . . . . . Kick . | . . . . . Crush . | . . . . . Escape Stasis . | . . . . . Rewire . | . . . . . Trap . | . . . . . Miscellaneous . | . . . . . Route ------- -11/Junkyard -10/Materials (discovered 4 exits: [*Mat x3] / *Min) -10/Mines (discovered 2 exits: [*Mat] / *Exi) -10/Exiles -9/Mines (discovered 1 exit: [*Mat]) History --------- Turn | Location | Event 3 | -11/Junkyard | Discovered new exit (range 15) 66 | -11/Junkyard | Entered Materials 233 | -10/Materials | Identified exit to Mines 300 | -10/Materials | Build established: Mutant 495 | -10/Materials | Discovered new exit (range 15) 846 | -10/Materials | Discovered new exit (range 14) 1144 | -10/Materials | Discovered new exit (range 10) 1254 | -10/Materials | Entered Mines 1302 | -10/Mines | Found a hidden stash of uninstalled traps 1594 | -10/Mines | Learned 8 Materials zone layouts 1955 | -10/Mines | Discovered new exit (range 6) 2051 | -10/Mines | Deemed a non-threat by the Exiles lab entrance 2051 | -10/Mines | Discovered new exit (range 5) 2077 | -10/Mines | Entered Exiles 2107 | -10/Exiles | Met 8R-AWN 2128 | -10/Exiles | Met EX-HEX 2203 | -10/Exiles | Met EX-DEC 2226 | -10/Exiles | Visited The Gauntlet 2407 | -10/Exiles | Discovered new exit (range 11) 2526 | -10/Exiles | Met EX-BIN 2550 | -10/Exiles | Aligned with FarCom system 2551 | -10/Exiles | Given EX-Vault access code 2583 | -10/Exiles | Opened EX-Vault 2587 | -10/Exiles | Found Prototype Leg 2588 | -10/Exiles | Identified Potential Leg 2591 | -10/Exiles | Found Potential Leg 2605 | -10/Exiles | Found Prototype Device 2610 | -10/Exiles | Identified Skeleton Box 2616 | -10/Exiles | Found Prototype Special Weapon 2617 | -10/Exiles | Identified Field Lobotomy Kit 2654 | -10/Exiles | Exiles lab attacked by MAIN.C 2903 | -10/Exiles | Left Exiles lab with Potential Leg 2903 | -10/Exiles | Entered Mines 2904 | -9/Mines | Assembled infested the area 2909 | -9/Mines | Assisted by a Guerilla fighting off Assembled 2909 | -9/Mines | Core integrity fell below 50% 2944 | -9/Mines | Destroyed 14 combat bots 3078 | -9/Mines | Discovered new exit (range 9) 3124 | -9/Mines | Core integrity fell below 20% 3127 | -9/Mines | Destroyed by D-53 Grenadier with Mini Grenade Launcher Last Messages --------------- 02940_ The unstable cave ceiling collapses. 02940_ Acquired 4 matter. 02942_ K-01 Serf collects debris. 02943_ Acquired 2 matter. 02953_ K-01 Serf collects debris. 02955_ Acquired 4 matter. 02957_ Acquired 2 matter. 02957_ K-01 Serf collects debris. 02958_ Acquired 1 matter. 02959_ Acquired 9 matter. 02960_ K-01 Serf collects debris. 02966_ The unstable cave ceiling collapses. 02968_ Connecting with Terminal... 02968_ Current location identified: Mines 03076_ K-01 Serf collects debris. 03078_ EXIT=FOUND 03079_ K-01 Serf collects debris. 03082_ Acquired 51 matter. 03083_ K-01 Serf collects debris. 03125_ Lgt. Ion Engine destroyed. Map ----- +----------------------------------------------------+ | ???????????## """ ##### #???????????? | | ???????????# """ ##??# #???????????? | | ???????????# """ #### #???????????? | | ???????????## #???????????? | | ????????????## ### #???????????? | | ?????????????# # ##?# ##??????????? | | ?????????????# ## ##?## ##?????????? | | ???????###???# #####??# #?????????? | | ??????## #### ##????# #???????? | | ??????# ## ###??## ????? | | ??????# ##??## #???? | | ??????# ##??## < ####???? | | ??????## #??#% #?????? | | ???????# ## #?? #?????? | | ???????## ### ##?# ! #?????? | | ????????# #######??? | ##?????? | | ????????# #??????? ### ##??????? | | ????????# ## #???????? #?? #???????? | | ????????# ##g#????????? ##?? #???????? | | ????????# ##g#?????????##?????#???????? | | ????????# ## #????????????????????????? | | ??????### ## #?###????????????????????? | | ?????## # ## ##???????????????????? | | ?????# # #???????????????????? | | ????## # ##??????????????????? | | ???## ## d@ #??????????????????? | | ???# ## #??????????????????? | | ???# """ ## #??????????????????? | | ???# """ ## # # #??????????????????? | | ???# """ ### #####? ?????????????????? | | ???# #?# #??????# ????????????????? | | ???# ## #????????#???????????????? | | ???## ### #????????????????????????? | | ????######### ##???????????????????????? | | ???????# #???????????????????????? | | ???????# ##??????????????????????? | | ???????# T#??????????????????????? | | ???????# ##??????????????????????? | | ???????# #???????????????????????? | | ???????# """ #???????????????????????? | | ???????# """ ####????????????????????? | | ???????# """ ####???#?????????????? | | ???????####### ### #?????????????? | | ????????????## #?????????????? | | ????????????# #### #?????????????? | | ????????????# ##?? #?????????????? | | ???????????## ##?? #?????????????? | | ???????????# ##? #?????????????? | | ???????????#= # #? #?????????????? | | ?????????#### ! # ## ###???????????? | +----------------------------------------------------+ Best States ------------- Heat Dissipation 25 Energy Generation 10 Energy Capacity 125 Matter Stores 300 Matter Capacity 300 Sight Range 16 Terrain Scan Density 10 Evasion (%) 57 Targeting Accuracy 5 Item Schematics ----------------- None Robot Schematics ------------------ None Fabricated ------------ Nothing Alien Tech Used ----------------- None Achievements -------------- None Challenges ------------ None Game ------ Seed AlertThrowingRail Manual? 0 Play Time 00:40:04 Cumulative 112.3 hours Start 2023.05.26 @ 22:17:45 End 2023.05.26 @ 23:43:48 Sessions 1 Manual Loads 0 Difficulty Rogue Special Mode None Game No. 13 Rogue 11 Adventurer 0 Explorer 2 Win Type - Total 3 Types 0/0/0/3/0/0/0/0/0 Lore% 31 Gallery% 36 Achievement% 45 Wizard Run 0 Options --------- ASCII 0 Keyboard 0 Movement Mouse Keybinds 0 Fullscreen 1 Font 18/SmallcapsGlow Map View 70x50 Tactical HUD 1 Map Filters NONE Filters NONE Steam 1 RUN: 85fb268f-6408-42d0-bfab-8bfca1ea6d0b